[Event "17th Memorial Lezcano Montalvo 2025"]
[Site "Gran Canaria"]
[Date "2025.04.12"]
[Round "1.46"]
[White "Leandro Tejera, Damian"]
[Black "Sosa Suarez, Carla Cristina"]
[Result "0-1"]
[Annotator "RC"]
[ECO "B06"]
[WhiteElo "1546"]
[BlackElo "2056"]
[PlyCount "104"]
[EventDate "2025.04.13"]
[EventType "swiss"]
[EventCountry "ESP"]
[SourceTitle "playchess.com"]
[Source "ChessBase"]
[SourceQuality "1"]
[TimeControl "5400+30"]

1. d4 {[%emt 1:31:00]} d6 {[%emt 1:31:00]} 2. Nf3 {[%emt 0:00:30]} g6 {[%emt 0:00:30]} 3. Nc3 {[%emt 0:00:30]} Nd7 {[%emt 0:00:30]} 4. e4 {[%emt 0:00:30]} Bg7 {[%emt 0:00:30]} 5. Bc4 {[%emt 0:00:30]} e6 {[%emt 0:00:30]} 6. Bf4 {[%emt 0:00:30]} Ne7 {[%emt 0:00:30]} 7. Qd2 {[%emt 0:00:30]} a6 {[%emt 0:00:30]} 8. Bh6 {[%emt 0:00:30]} Bxh6 {[%emt 0:00:30]} 9. Qxh6 {[%emt 0:00:30]} Ng8 {[%emt 0:00:30]} 10. Qd2 {[%emt 0:00:30]} b5 {[%emt 0:00:30]} 11. Bb3 {[%emt 0:00:30]} Bb7 {[%emt 0:00:30]} 12. d5 {[%emt 0:00:30]} e5 {[%emt 0:00:30]} 13. a3 {[%emt 0:00:30]} Nc5 {[%emt 0:00:30]} 14. Ba2 {[%emt 0:00:30]} Nf6 {[%emt 0:00:30]} 15. Qe3 {[%emt 0:00:30]} Qe7 {[%emt 0:00:30]} 16. b4 {[%emt 0:00:30]} Ncd7 {[%emt 0:00:30]} 17. O-O {[%emt 0:00:30]} Nb6 {[%emt 0:00:30]} 18. Nd2 {[%emt 0:00:30]} Nh5 {[%emt 0:00:30]} 19. Ne2 {[%emt 0:00:30]} O-O {[%emt 0:00:30]} 20. c4 {[%emt 0:00:30]} bxc4 {[%emt 0:00:30]} 21. Nxc4 {[%emt 0:00:00]} Nxc4 {[%emt 0:00:00]} 22. Bxc4 {[%emt 0:00:00]} Kg7 {[%emt 0:00:00]} 23. Rfc1 {[%emt 0:00:00]} Rfc8 {[%emt 0:00:00]} 24. f4 {[%emt 0:00:00]} exf4 {[%emt 0:00:00]} 25. Nxf4 {[%emt 0:00:00]} Nf6 {[%emt 0:00:00]} 26. Bd3 {[%emt 0:00:00]} Qe5 {[%emt 0:00:00]} 27. Ne2 {[%emt 0:00:00]} Nxd5 {[%emt 0:00:00]} 28. Qd4 {[%emt 0:00:00]} Qxd4+ {[%emt 0:00:00]} 29. Nxd4 {[%emt 0:00:00]} Nf4 {[%emt 0:00:00]} 30. Bc4 {[%emt 0:00:00]} Bxe4 {[%emt 0:00:00]} 31. Rf1 {[%emt 0:00:00]} g5 {[%emt 0:00:00]} 32. h4 {[%emt 0:00:00]} d5 {[%emt 0:00:00]} 33. hxg5 {[%emt 0:00:00]} Ne6 {[%emt 0:00:00]} 34. Nxe6+ {[%emt 0:00:00]} fxe6 {[%emt 0:00:00]} 35. Be2 {[%emt 0:00:00]} a5 {[%emt 0:00:00]} 36. Bg4 {[%emt 0:00:00]} Re8 {[%emt 0:00:00]} 37. Rac1 {[%emt 0:00:00]} Re7 {[%emt 0:00:34]} 38. Rc6 {[%emt 0:00:00]} axb4 {[%emt 0:00:22]} 39. axb4 {[%emt 0:00:00]} Ra2 {[%emt 0:02:25]} 40. Bf3 {[%emt 0:00:00]} Bxf3 {[%emt 0:00:00]} 41. gxf3 {[%emt 0:00:00]} Kg6 {[%emt 0:00:19]} 42. f4 {[%emt 0:00:00]} Kf5 {[%emt 0:00:27]} 43. Rfc1 {[%emt 0:00:00]} Kxf4 {[%emt 0:01:21]} 44. Rxc7 {[%emt 0:00:00]} Rxc7 {[%emt 0:00:00]} 45. Rxc7 {[%emt 0:00:00]} Kxg5 {[%emt 0:00:05]} 46. Rxh7 {[%emt 0:00:00]} Rb2 {[%emt 0:00:31]} 47. Rb7 {[%emt 0:00:00]} Kf4 {[%emt 0:00:21]} 48. b5 {[%emt 0:00:00]} e5 {[%emt 0:00:18]} 49. b6 {[%emt 0:00:00]} Ke3 {[%emt 0:01:03]} 50. Rb8 {[%emt 0:00:00]} d4 {[%emt 0:01:34]} 51. b7 {[%emt 0:00:00]} e4 {[%emt 0:00:19]} 52. Kf1 {[%emt 0:00:00]} d3 {[%emt 0:00:00]} 0-1

[Event "17th Memorial Lezcano Montalvo 2025"]
[Site "Gran Canaria"]
[Date "2025.04.12"]
[Round "1.47"]
[White "Camino Carrio, Nicanor"]
[Black "Bernal Zelaya, Pedro Gabriel"]
[Result "1-0"]
[Annotator "RC"]
[ECO "D02"]
[WhiteElo "2045"]
[BlackElo "1538"]
[PlyCount "77"]
[EventDate "2025.04.13"]
[EventType "swiss"]
[EventCountry "ESP"]
[SourceTitle "playchess.com"]
[Source "ChessBase"]
[SourceQuality "1"]
[TimeControl "5400+30"]

1. d4 {[%emt 0:00:08]} d5 {[%emt 0:00:06]} 2. Bf4 {[%emt 0:00:13]} Nc6 {[%emt 1:31:24]} 3. Nf3 {[%emt 0:00:49]} Nf6 {[%emt 0:00:00]} 4. e3 {[%emt 0:00:20]} Bf5 {[%emt 0:00:00]} 5. Bb5 {[%emt 0:01:10]} a6 {[%emt 0:00:00]} 6. Bxc6+ {[%emt 0:00:13]} bxc6 {[%emt 0:00:00]} 7. Ne5 {[%emt 0:00:05]} Bd7 {[%emt 0:00:00]} 8. Nd2 {[%emt 0:01:23]} e6 {[%emt 0:00:00]} 9. O-O {[%emt 0:00:29]} c5 {[%emt 0:00:00]} 10. c4 {[%emt 0:01:51]} Bd6 {[%emt 0:00:00]} 11. dxc5 {[%emt 0:01:42]} Bxc5 {[%emt 0:00:00]} 12. Rc1 {[%emt 0:02:03]} Bd6 {[%emt 0:00:00]} 13. c5 {[%emt 0:01:44]} Bxe5 {[%emt 0:00:00]} 14. Bxe5 {[%emt 0:00:08]} Bb5 {[%emt 0:00:00]} 15. Re1 {[%emt 0:00:09]} O-O {[%emt 0:00:00]} 16. Qc2 {[%emt 0:02:30]} Bc6 {[%emt 0:00:00]} 17. Nf3 {[%emt 0:02:04]} Nd7 {[%emt 0:00:00]} 18. Bg3 {[%emt 0:00:37]} f6 {[%emt 0:00:00]} 19. Nd4 {[%emt 0:00:12]} Nb8 {[%emt 0:00:00]} 20. Nxe6 {[%emt 0:00:16]} Qe7 {[%emt 0:00:00]} 21. Nxf8 {[%emt 0:01:10]} Qxf8 {[%emt 0:00:00]} 22. Bxc7 {[%emt 0:00:25]} Qe7 {[%emt 0:00:00]} 23. Bd6 {[%emt 0:00:24]} Qe6 {[%emt 0:00:00]} 24. Qb3 {[%emt 0:00:41]} Nd7 {[%emt 0:00:00]} 25. h3 {[%emt 0:02:01]} f5 {[%emt 0:00:00]} 26. Rcd1 {[%emt 0:02:15]} g5 {[%emt 0:00:00]} 27. Rd4 {[%emt 0:01:56]} h5 {[%emt 0:00:00]} 28. e4 {[%emt 0:01:02]} Ra7 {[%emt 0:00:00]} 29. Qd1 {[%emt 0:00:35]} fxe4 {[%emt 0:00:00]} 30. Qxh5 {[%emt 0:00:27]} Qf6 {[%emt 0:00:00]} 31. Qe8+ {[%emt 0:01:13]} Kg7 {[%emt 0:00:00]} 32. Rb4 {[%emt 0:04:03]} Kh6 {[%emt 0:00:00]} 33. Be7 {[%emt 0:04:48]} Qg7 {[%emt 0:00:00]} 34. g4 {[%emt 0:05:50]} Kh7 {[%emt 0:00:00]} 35. Qh5+ {[%emt 0:01:53]} Kg8 {[%emt 0:00:00]} 36. Bxg5 {[%emt 0:02:23]} Bb5 {[%emt 0:00:00]} 37. Bh6 {[%emt 0:02:41]} Qf6 {[%emt 0:00:00]} 38. Qxd5+ {[%emt 0:00:43]} Kh7 {[%emt 0:00:00]} 39. g5 {[%emt 0:02:06]} 1-0

[Event "17th Memorial Lezcano Montalvo 2025"]
[Site "Gran Canaria"]
[Date "2025.04.12"]
[Round "1.48"]
[White "Roquero Redondo, Miguel"]
[Black "Mykhyeyev, Serafim"]
[Result "1-0"]
[Annotator "RC"]
[ECO "C62"]
[WhiteElo "2037"]
[BlackElo "1516"]
[PlyCount "53"]
[EventDate "2025.04.13"]
[EventType "swiss"]
[EventCountry "ESP"]
[SourceTitle "playchess.com"]
[Source "ChessBase"]
[SourceQuality "1"]
[TimeControl "5400+30"]

1. e4 {[%emt 0:00:30]} e5 {[%emt 0:00:07]} 2. Nf3 {[%emt 0:00:05]} Nc6 {[%emt 0:00:37]} 3. Bb5 {[%emt 0:00:07]} d6 {[%emt 0:00:00]} 4. d4 {[%emt 0:00:15]} exd4 {[%emt 0:00:48]} 5. Nxd4 {[%emt 0:00:08]} Bd7 {[%emt 0:00:00]} 6. Bxc6 {[%emt 0:00:27]} Bxc6 {[%emt 0:00:00]} 7. Nxc6 {[%emt 0:00:11]} bxc6 {[%emt 1:32:28]} 8. Qf3 {[%emt 0:00:17]} d5 {[%emt 0:00:00]} 9. O-O {[%emt 0:01:42]} Be7 {[%emt 0:00:00]} 10. Nc3 {[%emt 0:01:11]} d4 {[%emt 0:00:00]} 11. Ne2 {[%emt 0:00:17]} c5 {[%emt 0:00:00]} 12. Rd1 {[%emt 0:01:14]} Nf6 {[%emt 0:00:00]} 13. c3 {[%emt 0:01:01]} O-O {[%emt 0:00:00]} 14. cxd4 {[%emt 0:01:00]} cxd4 {[%emt 0:00:00]} 15. Rxd4 {[%emt 0:02:36]} Qc8 {[%emt 0:00:00]} 16. Bg5 {[%emt 0:03:18]} Re8 {[%emt 0:00:00]} 17. Rad1 {[%emt 0:03:22]} Qa6 {[%emt 0:00:00]} 18. e5 {[%emt 0:03:44]} Qxa2 {[%emt 0:00:00]} 19. exf6 {[%emt 0:00:37]} Bxf6 {[%emt 0:00:00]} 20. Bxf6 {[%emt 0:01:11]} gxf6 {[%emt 0:00:00]} 21. Rg4+ {[%emt 0:02:41]} Kf8 {[%emt 0:00:00]} 22. Qxf6 {[%emt 0:01:20]} Rxe2 {[%emt 0:00:00]} 23. Qh8+ {[%emt 0:00:25]} Ke7 {[%emt 0:00:00]} 24. Qxa8 {[%emt 0:00:06]} Qa5 {[%emt 0:00:00]} 25. Qd8+ {[%emt 0:00:56]} Ke6 {[%emt 0:09:00]} 26. Qe8+ {[%emt 0:00:22]} Kf6 {[%emt 0:00:00]} 27. Qxe2 {[%emt 0:00:13]} 1-0

[Event "17th Memorial Lezcano Montalvo 2025"]
[Site "Gran Canaria"]
[Date "2025.04.12"]
[Round "1.49"]
[White "Santana Slamova, Yassine"]
[Black "Rodriguez Melian, Jose Luis"]
[Result "0-1"]
[Annotator "RC"]
[ECO "C30"]
[WhiteElo "1515"]
[BlackElo "2029"]
[PlyCount "92"]
[EventDate "2025.04.13"]
[EventType "swiss"]
[EventCountry "ESP"]
[SourceTitle "playchess.com"]
[Source "ChessBase"]
[SourceQuality "1"]
[TimeControl "5400+30"]

1. e4 {[%emt 0:00:03]} e5 {[%emt 0:00:08]} 2. f4 {[%emt 0:00:13]} Bc5 {[%emt 0:00:13]} 3. Nf3 {[%emt 0:00:28]} d6 {[%emt 0:00:05]} 4. Nc3 {[%emt 0:01:17]} Nf6 {[%emt 0:00:07]} 5. fxe5 {[%emt 0:01:25]} dxe5 {[%emt 0:00:05]} 6. Bc4 {[%emt 0:01:00]} O-O {[%emt 0:02:23]} 7. d3 {[%emt 0:00:48]} Be6 {[%emt 0:06:22]} 8. Bg5 {[%emt 0:04:23]} Bxc4 {[%emt 0:09:04]} 9. Bxf6 {[%emt 0:02:22]} Qxf6 {[%emt 0:01:18]} 10. dxc4 {[%emt 0:00:18]} c6 {[%emt 0:02:47]} 11. Qe2 {[%emt 0:03:33]} Bb4 {[%emt 0:02:47]} 12. Qe3 {[%emt 0:01:23]} Na6 {[%emt 0:06:23]} 13. O-O-O {[%emt 0:03:50]} Qe6 {[%emt 0:02:00]} 14. a3 {[%emt 0:08:24]} Be7 {[%emt 0:01:10]} 15. h4 {[%emt 0:03:44]} f6 {[%emt 0:00:25]} 16. Qe2 {[%emt 0:04:43]} Rfd8 {[%emt 0:00:37]} 17. h5 {[%emt 0:01:36]} Qg4 {[%emt 0:06:06]} 18. Rh4 {[%emt 0:02:33]} Rxd1+ {[%emt 0:01:37]} 19. Nxd1 {[%emt 0:00:15]} Qd7 {[%emt 0:04:18]} 20. Rh3 {[%emt 0:05:21]} Nc5 {[%emt 0:03:53]} 21. Nh4 {[%emt 0:03:21]} Bf8 {[%emt 0:01:24]} 22. Rg3 {[%emt 0:02:30]} Rd8 {[%emt 0:04:41]} 23. Nc3 {[%emt 0:05:07]} Qf7 {[%emt 0:04:44]} 24. Nf5 {[%emt 0:01:36]} Kh8 {[%emt 0:00:05]} 25. Rh3 {[%emt 0:02:24]} Ne6 {[%emt 0:02:21]} 26. g3 {[%emt 0:03:26]} Nd4 {[%emt 0:02:18]} 27. Qf1 {[%emt 0:04:26]} Nxf5 {[%emt 0:00:25]} 28. exf5 {[%emt 0:01:24]} Rd4 {[%emt 0:01:00]} 29. Qf2 {[%emt 0:03:48]} Qxc4 {[%emt 0:01:34]} 30. Rh4 {[%emt 0:01:25]} Bc5 {[%emt 0:03:23]} 31. Rxd4 {[%emt 0:01:18]} Bxd4 {[%emt 0:00:04]} 32. Qe2 {[%emt 0:01:22]} Qxe2 {[%emt 0:02:50]} 33. Nxe2 {[%emt 0:00:08]} Be3+ {[%emt 0:00:06]} 34. Kd1 {[%emt 0:00:24]} g6 {[%emt 0:00:14]} 35. g4 {[%emt 0:00:41]} gxf5 {[%emt 0:03:51]} 36. gxf5 {[%emt 0:00:11]} Kg7 {[%emt 0:01:02]} 37. Ng3 {[%emt 0:00:19]} Kh6 {[%emt 0:00:50]} 38. Ne4 {[%emt 0:00:11]} Bg5 {[%emt 0:00:25]} 39. Ke2 {[%emt 0:01:23]} Kxh5 {[%emt 0:01:07]} 40. Kf3 {[%emt 0:00:14]} Bc1 {[%emt 0:02:14]} 41. Nxf6+ {[%emt 0:00:47]} Kg5 {[%emt 0:00:04]} 42. Nxh7+ {[%emt 0:00:34]} Kxf5 {[%emt 0:00:05]} 43. Nf8 {[%emt 0:00:14]} e4+ {[%emt 0:00:23]} 44. Ke2 {[%emt 0:00:11]} Bxb2 {[%emt 0:01:11]} 45. a4 {[%emt 0:00:15]} Bd4 {[%emt 0:00:45]} 46. c4 {[%emt 0:00:21]} Kf6 {[%emt 0:01:14]} 0-1

[Event "17th Memorial Lezcano Montalvo 2025"]
[Site "Gran Canaria"]
[Date "2025.04.12"]
[Round "1.50"]
[White "Sanchez Gonzalez, Diego"]
[Black "Quintana Arcila, Yaiza"]
[Result "1-0"]
[Annotator "RC"]
[ECO "C44"]
[WhiteElo "2025"]
[BlackElo "1512"]
[PlyCount "43"]
[EventDate "2025.04.13"]
[EventType "swiss"]
[EventCountry "ESP"]
[SourceTitle "playchess.com"]
[Source "ChessBase"]
[SourceQuality "1"]
[TimeControl "5400+30"]

1. e4 {[%emt 0:00:03]} e5 {[%emt 0:00:09]} 2. Nf3 {[%emt 0:00:15]} Nc6 {[%emt 0:00:14]} 3. d4 {[%emt 0:00:33]} exd4 {[%emt 0:00:18]} 4. c3 {[%emt 0:00:29]} dxc3 {[%emt 0:00:56]} 5. Nxc3 {[%emt 0:00:10]} Bb4 {[%emt 0:00:08]} 6. Bc4 {[%emt 0:00:06]} Nf6 {[%emt 0:02:51]} 7. e5 {[%emt 0:00:09]} Qe7 {[%emt 0:10:33]} 8. O-O {[%emt 0:01:01]} Ng8 {[%emt 0:04:17]} 9. Nd5 {[%emt 0:00:39]} Qd8 {[%emt 0:00:22]} 10. Nxb4 {[%emt 0:01:20]} Nxb4 {[%emt 0:00:06]} 11. Bg5 {[%emt 0:00:11]} Ne7 {[%emt 0:00:15]} 12. Qb3 {[%emt 0:00:12]} Nbc6 {[%emt 0:01:02]} 13. Bxf7+ {[%emt 0:00:08]} Kf8 {[%emt 0:00:05]} 14. Bh5 {[%emt 0:00:11]} g6 {[%emt 0:00:14]} 15. Bh6+ {[%emt 0:00:07]} Ke8 {[%emt 0:00:09]} 16. Ng5 {[%emt 0:00:29]} Nxe5 {[%emt 0:00:27]} 17. Bg7 {[%emt 0:00:08]} Rg8 {[%emt 0:00:14]} 18. Bxe5 {[%emt 0:00:07]} d6 {[%emt 0:00:50]} 19. Qf7+ {[%emt 0:00:33]} Kd7 {[%emt 0:00:14]} 20. Bg4+ {[%emt 0:00:12]} Kc6 {[%emt 0:00:20]} 21. Rac1+ {[%emt 0:00:18]} Kb6 {[%emt 0:00:21]} 22. Qb3+ {[%emt 0:00:09]} 1-0

[Event "17th Memorial Lezcano Montalvo 2025"]
[Site "Gran Canaria"]
[Date "2025.04.12"]
[Round "1.51"]
[White "Sancho Quesada, Juan Pedro"]
[Black "Torres Rebolledo, Marcos"]
[Result "0-1"]
[Annotator "RC"]
[ECO "B11"]
[WhiteElo "1503"]
[BlackElo "2010"]
[PlyCount "32"]
[EventDate "2025.04.13"]
[EventType "swiss"]
[EventCountry "ESP"]
[SourceTitle "playchess.com"]
[Source "ChessBase"]
[SourceQuality "1"]
[TimeControl "5400+30"]

1. e4 {[%emt 0:00:15]} c6 {[%emt 0:00:07]} 2. Nf3 {[%emt 0:00:16]} d5 {[%emt 0:00:08]} 3. Nc3 {[%emt 0:00:19]} Bg4 {[%emt 0:00:33]} 4. h3 {[%emt 0:01:48]} Bxf3 {[%emt 0:00:10]} 5. Qxf3 {[%emt 0:00:48]} e6 {[%emt 0:00:10]} 6. d3 {[%emt 0:01:07]} Nd7 {[%emt 0:00:12]} 7. Bf4 {[%emt 0:00:44]} Qb6 {[%emt 0:05:53]} 8. Rb1 {[%emt 0:02:45]} d4 {[%emt 0:10:04]} 9. Ne2 {[%emt 0:02:43]} Qa5+ {[%emt 0:01:38]} 10. Bd2 {[%emt 0:00:48]} Qxa2 {[%emt 0:01:17]} 11. Rc1 {[%emt 0:00:27]} Qxb2 {[%emt 0:01:21]} 12. g3 {[%emt 0:03:47]} Ngf6 {[%emt 0:05:05]} 13. Bg2 {[%emt 0:01:02]} Ne5 {[%emt 0:02:00]} 14. Qf4 {[%emt 0:00:49]} Bd6 {[%emt 0:02:28]} 15. Qh4 {[%emt 0:02:17]} h6 {[%emt 0:02:27]} 16. Nf4 {[%emt 0:02:58]} g5 {[%emt 0:01:37]} 0-1

[Event "17th Memorial Lezcano Montalvo 2025"]
[Site "Gran Canaria"]
[Date "2025.04.12"]
[Round "1.52"]
[White "Bolivar Castro, Alejandro"]
[Black "Chara Erazo, Laura"]
[Result "1-0"]
[Annotator "RC"]
[ECO "D06"]
[WhiteElo "2006"]
[BlackElo "1500"]
[PlyCount "53"]
[EventDate "2025.04.13"]
[EventType "swiss"]
[EventCountry "ESP"]
[SourceTitle "playchess.com"]
[Source "ChessBase"]
[SourceQuality "1"]
[TimeControl "5400+30"]

1. d4 {[%emt 0:00:08]} d5 {[%emt 0:00:43]} 2. Bf4 {[%emt 0:00:06]} Nc6 {[%emt 0:00:34]} 3. e3 {[%emt 0:00:23]} Bf5 {[%emt 0:00:19]} 4. c4 {[%emt 0:00:19]} Nf6 {[%emt 0:01:11]} 5. Nc3 {[%emt 0:00:18]} e6 {[%emt 0:00:34]} 6. Nf3 {[%emt 0:05:03]} Bd6 {[%emt 0:03:04]} 7. Ne5 {[%emt 0:05:20]} O-O {[%emt 0:05:24]} 8. Be2 {[%emt 0:02:04]} h6 {[%emt 0:07:28]} 9. O-O {[%emt 0:06:45]} Qe7 {[%emt 0:04:45]} 10. Bg3 {[%emt 0:04:41]} Rad8 {[%emt 0:08:59]} 11. f4 {[%emt 0:14:37]} Bxe5 {[%emt 0:02:20]} 12. fxe5 {[%emt 0:00:28]} Ne4 {[%emt 0:00:39]} 13. cxd5 {[%emt 0:11:38]} Nb4 {[%emt 0:02:03]} 14. Nxe4 {[%emt 0:05:27]} Bxe4 {[%emt 0:01:04]} 15. d6 {[%emt 0:01:49]} cxd6 {[%emt 0:58:53]} 16. exd6 {[%emt 0:00:23]} Qg5 {[%emt 0:00:00]} 17. Rf4 {[%emt 0:15:25]} f5 {[%emt 0:00:00]} 18. Bf3 {[%emt 0:02:17]} Bxf3 {[%emt 0:00:00]} 19. Rxf3 {[%emt 0:00:39]} Nd5 {[%emt 0:00:00]} 20. Qb3 {[%emt 0:00:38]} Rf7 {[%emt 0:00:00]} 21. Raf1 {[%emt 0:00:30]} Re8 {[%emt 0:00:00]} 22. e4 {[%emt 0:01:11]} Nf6 {[%emt 0:00:00]} 23. exf5 {[%emt 0:00:32]} exf5 {[%emt 0:00:00]} 24. Be5 {[%emt 0:00:56]} Ne4 {[%emt 0:00:00]} 25. Rxf5 {[%emt 0:00:50]} Qg6 {[%emt 0:00:00]} 26. Rxf7 {[%emt 0:00:16]} Kh8 {[%emt 0:00:00]} 27. Rf8+ {[%emt 0:00:08]} 1-0

[Event "17th Memorial Lezcano Montalvo 2025"]
[Site "Gran Canaria"]
[Date "2025.04.12"]
[Round "1.53"]
[White "Rodriguez Morales, Jimena"]
[Black "Schmitz, Andreas Arnold"]
[Result "0-1"]
[Annotator "RC"]
[ECO "C01"]
[WhiteElo "1496"]
[BlackElo "1967"]
[PlyCount "66"]
[EventDate "2025.04.13"]
[EventType "swiss"]
[EventCountry "ESP"]
[SourceTitle "playchess.com"]
[Source "ChessBase"]
[SourceQuality "1"]
[TimeControl "5400+30"]

1. e4 {[%emt 0:00:03]} e6 {[%emt 0:03:10]} 2. d4 {[%emt 0:00:30]} d5 {[%emt 0:00:53]} 3. exd5 {[%emt 0:02:57]} exd5 {[%emt 0:00:09]} 4. Bd3 {[%emt 0:01:22]} Nc6 {[%emt 0:00:17]} 5. c3 {[%emt 0:00:55]} Bd6 {[%emt 0:06:04]} 6. Ne2 {[%emt 0:02:44]} Qf6 {[%emt 0:03:37]} 7. Qc2 {[%emt 0:02:30]} Nge7 {[%emt 0:01:02]} 8. b4 {[%emt 0:03:38]} Bf5 {[%emt 0:02:02]} 9. Bxf5 {[%emt 0:01:15]} Qxf5 {[%emt 0:02:00]} 10. Qa4 {[%emt 0:01:11]} O-O {[%emt 0:02:20]} 11. O-O {[%emt 0:07:56]} Bxh2+ {[%emt 0:02:35]} 12. Kxh2 {[%emt 0:01:42]} Qh5+ {[%emt 0:00:08]} 13. Kg1 {[%emt 0:00:05]} Qxe2 {[%emt 0:00:11]} 14. Bf4 {[%emt 0:02:27]} Qb2 {[%emt 0:09:49]} 15. Na3 {[%emt 0:02:59]} Qxc3 {[%emt 0:02:11]} 16. Nb5 {[%emt 0:00:51]} Qxb4 {[%emt 0:00:36]} 17. Qxb4 {[%emt 0:00:26]} Nxb4 {[%emt 0:00:08]} 18. Nxc7 {[%emt 0:00:12]} Rad8 {[%emt 0:01:53]} 19. Rab1 {[%emt 0:07:09]} Nec6 {[%emt 0:03:33]} 20. Bg5 {[%emt 0:01:30]} Rd7 {[%emt 0:01:08]} 21. Bf4 {[%emt 0:03:49]} Nxd4 {[%emt 0:03:44]} 22. Bh2 {[%emt 0:04:22]} Na6 {[%emt 0:06:22]} 23. Rxb7 {[%emt 0:05:40]} Nxc7 {[%emt 0:03:08]} 24. Bxc7 {[%emt 0:01:30]} Rc8 {[%emt 0:00:44]} 25. Rfb1 {[%emt 0:01:42]} f6 {[%emt 0:06:11]} 26. Rxa7 {[%emt 0:01:30]} Rdxc7 {[%emt 0:00:51]} 27. Rxc7 {[%emt 0:00:47]} Rxc7 {[%emt 0:00:05]} 28. a4 {[%emt 0:00:19]} Kf7 {[%emt 0:01:58]} 29. Rd1 {[%emt 0:00:49]} Ne2+ {[%emt 0:01:04]} 30. Kf1 {[%emt 0:00:52]} Nc3 {[%emt 0:00:08]} 31. Rc1 {[%emt 0:00:05]} d4 {[%emt 0:01:47]} 32. Ke1 {[%emt 0:00:16]} Rc5 {[%emt 0:01:03]} 33. f3 {[%emt 0:00:53]} Nxa4 {[%emt 0:00:35]} 0-1

[Event "17th Memorial Lezcano Montalvo 2025"]
[Site "Gran Canaria"]
[Date "2025.04.12"]
[Round "1.54"]
[White "Gonzalez Martinez, Miguel Angel"]
[Black "Roque Hernandez, Francisco"]
[Result "1-0"]
[Annotator "RC"]
[ECO "C77"]
[WhiteElo "2134"]
[BlackElo "1483"]
[PlyCount "74"]
[EventDate "2025.04.13"]
[EventType "swiss"]
[EventCountry "ESP"]
[SourceTitle "playchess.com"]
[Source "ChessBase"]
[SourceQuality "1"]
[TimeControl "5400+30"]

1. e4 {[%emt 0:00:03]} e5 {[%emt 0:01:51]} 2. Nf3 {[%emt 0:00:25]} Nc6 {[%emt 0:00:43]} 3. Bb5 {[%emt 0:00:21]} a6 {[%emt 0:00:24]} 4. Ba4 {[%emt 0:00:02]} Nf6 {[%emt 0:00:37]} 5. Qe2 {[%emt 0:00:04]} b5 {[%emt 0:02:33]} 6. Bb3 {[%emt 0:00:24]} Bd6 {[%emt 0:02:04]} 7. c3 {[%emt 0:01:24]} Na5 {[%emt 0:03:44]} 8. Bc2 {[%emt 0:00:55]} Qe7 {[%emt 0:02:13]} 9. O-O {[%emt 0:03:58]} Bb7 {[%emt 0:00:48]} 10. d3 {[%emt 0:00:39]} h6 {[%emt 1:20:33]} 11. Nh4 {[%emt 1:27:45]} g6 {[%emt 0:00:00]} 12. b4 {[%emt 0:00:00]} Nc6 {[%emt 0:00:00]} 13. a4 {[%emt 0:00:00]} Nh5 {[%emt 0:00:00]} 14. g3 {[%emt 0:00:00]} O-O-O {[%emt 0:00:00]} 15. axb5 {[%emt 0:00:00]} axb5 {[%emt 0:02:30]} 16. Na3 {[%emt 0:02:30]} Na7 {[%emt 0:00:00]} 17. Be3 {[%emt 0:00:00]} c5 {[%emt 0:00:00]} 18. bxc5 {[%emt 0:00:00]} Bxc5 {[%emt 0:01:30]} 19. Bxc5 {[%emt 0:01:30]} Qxc5 {[%emt 0:00:00]} 20. d4 {[%emt 0:00:00]} exd4 {[%emt 0:00:00]} 21. cxd4 {[%emt 0:00:00]} Qb6 {[%emt 0:00:00]} 22. d5 {[%emt 0:00:00]} d6 {[%emt 0:00:00]} 23. Rab1 {[%emt 0:00:00]} Ba6 {[%emt 0:00:00]} 24. Bd3 {[%emt 0:00:00]} Rd7 {[%emt 0:00:00]} 25. Nxb5 {[%emt 0:00:00]} Nxb5 {[%emt 0:03:30]} 26. Bxb5 {[%emt 0:03:30]} Bxb5 {[%emt 0:00:30]} 27. Rxb5 {[%emt 0:00:30]} Qa7 {[%emt 0:00:00]} 28. Qb2 {[%emt 0:00:00]} Rhd8 {[%emt 0:00:00]} 29. Ra1 {[%emt 0:00:00]} Qxa1+ {[%emt 0:01:30]} 30. Qxa1 {[%emt 0:01:30]} Rc7 {[%emt 0:00:00]} 31. e5 {[%emt 0:00:00]} Kd7 {[%emt 0:00:00]} 32. exd6 {[%emt 0:00:00]} Kxd6 {[%emt 0:00:00]} 33. g4 {[%emt 0:00:00]} Rdc8 {[%emt 0:00:00]} 34. Qa3+ {[%emt 0:00:00]} Rc5 {[%emt 0:00:00]} 35. gxh5 {[%emt 0:00:00]} Kxd5 {[%emt 0:00:00]} 36. Rxc5+ {[%emt 0:00:00]} Rxc5 {[%emt 0:03:30]} 37. hxg6 {[%emt 0:00:00]} Ke6 {[%emt 0:00:00]} 1-0

[Event "17th Memorial Lezcano Montalvo 2025"]
[Site "Gran Canaria"]
[Date "2025.04.12"]
[Round "1.55"]
[White "Mykhyeyeva, Maria"]
[Black "Rivero Tacoronte, Gabriel"]
[Result "0-1"]
[Annotator "RC"]
[ECO "B15"]
[WhiteElo "1478"]
[BlackElo "1963"]
[PlyCount "82"]
[EventDate "2025.04.13"]
[EventType "swiss"]
[EventCountry "ESP"]
[SourceTitle "playchess.com"]
[Source "ChessBase"]
[SourceQuality "1"]
[TimeControl "5400+30"]

1. e4 {[%emt 0:00:05]} c6 {[%emt 0:00:09]} 2. d4 {[%emt 0:00:13]} d5 {[%emt 0:00:05]} 3. Nc3 {[%emt 0:00:27]} dxe4 {[%emt 0:00:09]} 4. Nxe4 {[%emt 0:00:14]} Nf6 {[%emt 0:00:05]} 5. Nxf6+ {[%emt 0:00:21]} exf6 {[%emt 0:00:04]} 6. c3 {[%emt 0:00:18]} Bd6 {[%emt 0:00:09]} 7. Bd3 {[%emt 0:00:17]} O-O {[%emt 0:00:19]} 8. Qc2 {[%emt 0:00:11]} Re8+ {[%emt 0:00:22]} 9. Ne2 {[%emt 0:00:17]} h5 {[%emt 0:00:17]} 10. O-O {[%emt 0:00:27]} h4 {[%emt 0:00:04]} 11. h3 {[%emt 0:00:13]} Nd7 {[%emt 0:01:09]} 12. Bf4 {[%emt 0:00:32]} Nf8 {[%emt 0:09:19]} 13. Rad1 {[%emt 0:02:14]} Rxe2 {[%emt 0:01:23]} 14. Qxe2 {[%emt 0:01:52]} Bxf4 {[%emt 0:00:14]} 15. Qe4 {[%emt 0:02:26]} Qc7 {[%emt 0:11:33]} 16. Rfe1 {[%emt 0:04:21]} Be6 {[%emt 0:01:43]} 17. Qf3 {[%emt 0:01:08]} g6 {[%emt 0:15:44]} 18. c4 {[%emt 0:01:28]} Rd8 {[%emt 0:05:20]} 19. Re4 {[%emt 0:03:53]} Bg5 {[%emt 0:00:31]} 20. Bf1 {[%emt 0:04:37]} f5 {[%emt 0:04:21]} 21. Ree1 {[%emt 0:03:45]} Qf4 {[%emt 0:03:56]} 22. Qc3 {[%emt 0:02:30]} Bf6 {[%emt 0:01:07]} 23. g3 {[%emt 0:01:37]} hxg3 {[%emt 0:00:47]} 24. Qxg3 {[%emt 0:00:34]} Qxg3+ {[%emt 0:01:55]} 25. fxg3 {[%emt 0:00:22]} Rxd4 {[%emt 0:01:01]} 26. Rc1 {[%emt 0:02:57]} Nd7 {[%emt 0:03:28]} 27. b4 {[%emt 0:01:23]} Ne5 {[%emt 0:00:53]} 28. Kg2 {[%emt 0:00:48]} Nd3 {[%emt 0:08:40]} 29. Bxd3 {[%emt 0:02:42]} Rxd3 {[%emt 0:00:07]} 30. Rcd1 {[%emt 0:00:50]} Bxc4 {[%emt 0:01:29]} 31. Re8+ {[%emt 0:01:13]} Kg7 {[%emt 0:00:02]} 32. Rc1 {[%emt 0:00:42]} Rd2+ {[%emt 0:00:51]} 33. Kh1 {[%emt 0:01:40]} Bd5+ {[%emt 0:01:19]} 34. Kg1 {[%emt 0:01:36]} Bd4+ {[%emt 0:00:24]} 35. Kf1 {[%emt 0:05:07]} Rh2 {[%emt 0:00:11]} 36. Rce1 {[%emt 0:00:57]} Bc4+ {[%emt 0:00:59]} 37. R8e2 {[%emt 0:00:28]} Rf2+ {[%emt 0:00:18]} 38. Kg1 {[%emt 0:00:42]} Rxe2+ {[%emt 0:00:05]} 39. Kf1 {[%emt 0:00:37]} Rh2+ {[%emt 0:00:06]} 40. Re2 {[%emt 0:00:28]} Bxe2+ {[%emt 0:00:22]} 41. Ke1 {[%emt 0:00:21]} Bc3# {[%emt 0:00:05]} 0-1